[Event "*** Titled Tuesday Blitz"]
[Site "Chess.com"]
[Date "2021.03.30"]
[Round "1"]
[White "Nikolakis2014"]
[Black "kidagent"]
[Result "1-0"]
[WhiteElo "2605"]
[BlackElo "2306"]
[TimeControl "180+1"]
[EndTime "10:06:05 PDT"]
[Termination "Nikolakis2014 won by checkmate"]

1. Nf3 {[%clk 0:03:00.5]} 1... Nf6 {[%clk 0:02:59.1]} 2. c4 {[%clk 0:02:59.6]}
2... c6 {[%clk 0:02:58.6]} 3. d4 {[%clk 0:02:58]} 3... d5 {[%clk 0:02:58.3]} 4.
Nc3 {[%clk 0:02:58.3]} 4... dxc4 {[%clk 0:02:57.8]} 5. e4 {[%clk 0:02:58.1]}
5... b5 {[%clk 0:02:57.6]} 6. Be2 {[%clk 0:02:57.2]} 6... e6 {[%clk 0:02:53.3]}
7. O-O {[%clk 0:02:55.9]} 7... Be7 {[%clk 0:02:51.9]} 8. a4 {[%clk 0:02:52.5]}
8... b4 {[%clk 0:02:49.8]} 9. e5 {[%clk 0:02:52]} 9... Nd5 {[%clk 0:02:36.5]}
10. Ne4 {[%clk 0:02:51.1]} 10... Ba6 {[%clk 0:02:31.1]} 11. Bg5 {[%clk
0:02:45.5]} 11... O-O {[%clk 0:02:25.6]} 12. Bxe7 {[%clk 0:02:41]} 12... Qxe7
{[%clk 0:02:24.1]} 13. Rc1 {[%clk 0:02:39.3]} 13... Nd7 {[%clk 0:01:56.7]} 14.
Bxc4 {[%clk 0:02:35.7]} 14... Bxc4 {[%clk 0:01:55.5]} 15. Rxc4 {[%clk
0:02:35.7]} 15... Rac8 {[%clk 0:01:49]} 16. a5 {[%clk 0:02:21.6]} 16... f6
{[%clk 0:01:38.9]} 17. Re1 {[%clk 0:02:09.2]} 17... fxe5 {[%clk 0:01:36.9]} 18.
dxe5 {[%clk 0:02:07.1]} 18... Rxf3 {[%clk 0:01:28.9]} 19. Qxf3 {[%clk
0:01:52.5]} 19... Nxe5 {[%clk 0:01:28.7]} 20. Qe2 {[%clk 0:01:52.8]} 20... Nxc4
{[%clk 0:01:26.3]} 21. Qxc4 {[%clk 0:01:52.7]} 21... Qc7 {[%clk 0:00:35.1]} 22.
g3 {[%clk 0:01:46.8]} 22... Qxa5 {[%clk 0:00:29.7]} 23. Nd6 {[%clk 0:01:46.8]}
23... Rf8 {[%clk 0:00:27.1]} 24. Qxc6 {[%clk 0:01:35.5]} 24... b3 {[%clk
0:00:25.1]} 25. Rxe6 {[%clk 0:01:20.9]} 25... Qa1+ {[%clk 0:00:21.1]} 26. Kg2
{[%clk 0:01:20.5]} 26... Qxb2 {[%clk 0:00:20.4]} 27. Qxd5 {[%clk 0:01:11.6]}
27... Qxf2+ {[%clk 0:00:20.2]} 28. Kh3 {[%clk 0:01:11.5]} 28... Qf1+ {[%clk
0:00:20.1]} 29. Kh4 {[%clk 0:01:10.6]} 29... b2 {[%clk 0:00:16.2]} 30. Re8+
{[%clk 0:01:06.1]} 30... Kh8 {[%clk 0:00:15.2]} 31. Nf7+ {[%clk 0:01:06]} 31...
Qxf7 {[%clk 0:00:14.5]} 32. Qxf7 {[%clk 0:01:05.8]} 32... Rxe8 {[%clk 0:00:14]}
33. Qxe8# {[%clk 0:01:05.9]} 1-0

[Event "*** Titled Tuesday Blitz"]
[Site "Chess.com"]
[Date "2021.03.30"]
[Round "1"]
[White "c_r_e_e_p_e_r"]
[Black "ChessQueen"]
[Result "0-1"]
[WhiteElo "2382"]
[BlackElo "2706"]
[TimeControl "180+1"]
[EndTime "10:06:06 PDT"]
[Termination "ChessQueen won on time"]

1. d4 {[%clk 0:02:59.9]} 1... Nf6 {[%clk 0:02:59.5]} 2. c4 {[%clk 0:02:59.6]}
2... e6 {[%clk 0:02:59.3]} 3. Nc3 {[%clk 0:02:59]} 3... Bb4 {[%clk 0:02:58.6]}
4. e3 {[%clk 0:02:57.7]} 4... b6 {[%clk 0:02:57.6]} 5. Nf3 {[%clk 0:02:55.7]}
5... Bb7 {[%clk 0:02:55.2]} 6. Bd2 {[%clk 0:02:56.1]} 6... Bxc3 {[%clk
0:02:51.7]} 7. Bxc3 {[%clk 0:02:55.8]} 7... Ne4 {[%clk 0:02:52]} 8. Rc1 {[%clk
0:02:54.8]} 8... d6 {[%clk 0:02:49.7]} 9. Bd3 {[%clk 0:02:54.7]} 9... Nxc3
{[%clk 0:02:48]} 10. Rxc3 {[%clk 0:02:54.5]} 10... Nd7 {[%clk 0:02:48.1]} 11.
O-O {[%clk 0:02:54.7]} 11... O-O {[%clk 0:02:47.1]} 12. b4 {[%clk 0:02:49.2]}
12... a5 {[%clk 0:02:41.7]} 13. a3 {[%clk 0:02:49.1]} 13... e5 {[%clk 0:02:28]}
14. d5 {[%clk 0:02:44.6]} 14... f5 {[%clk 0:02:26.7]} 15. e4 {[%clk 0:02:39.4]}
15... fxe4 {[%clk 0:02:16.2]} 16. Bxe4 {[%clk 0:02:40.3]} 16... Rf4 {[%clk
0:02:15.7]} 17. Nd2 {[%clk 0:02:30.1]} 17... axb4 {[%clk 0:02:06.1]} 18. axb4
{[%clk 0:02:30]} 18... Nf6 {[%clk 0:02:01.5]} 19. f3 {[%clk 0:02:12.4]} 19...
Rh4 {[%clk 0:01:47.5]} 20. Qe1 {[%clk 0:01:31]} 20... Rh6 {[%clk 0:01:46.1]} 21.
Qg3 {[%clk 0:01:21.5]} 21... Ra2 {[%clk 0:01:37.7]} 22. Rf2 {[%clk 0:00:51.3]}
22... Nh5 {[%clk 0:01:34.2]} 23. Qg4 {[%clk 0:00:48]} 23... Bc8 {[%clk
0:01:33.4]} 24. Bf5 {[%clk 0:00:38.8]} 24... Bxf5 {[%clk 0:01:25.6]} 25. Qxf5
{[%clk 0:00:39.1]} 25... Nf4 {[%clk 0:01:25.3]} 26. Rc2 {[%clk 0:00:22]} 26...
Rf6 {[%clk 0:01:17.4]} 27. Qe4 {[%clk 0:00:20.7]} 27... Ra1+ {[%clk 0:01:13.2]}
28. Rf1 {[%clk 0:00:18.2]} 28... Qa8 {[%clk 0:01:12.7]} 29. Rcc1 {[%clk
0:00:08.5]} 29... Rxc1 {[%clk 0:01:08.8]} 30. Rxc1 {[%clk 0:00:09.4]} 30... Qa3
{[%clk 0:01:09]} 0-1

[Event "*** Titled Tuesday Blitz"]
[Site "Chess.com"]
[Date "2021.03.30"]
[Round "1"]
[White "gui_borba"]
[Black "GMAkobianSTL"]
[Result "1-0"]
[WhiteElo "2451"]
[BlackElo "2814"]
[TimeControl "180+1"]
[EndTime "10:06:10 PDT"]
[Termination "gui_borba won by resignation"]

1. Nf3 {[%clk 0:02:59.9]} 1... d5 {[%clk 0:02:59.9]} 2. b3 {[%clk 0:02:59.3]}
2... c5 {[%clk 0:02:59.7]} 3. e3 {[%clk 0:02:56.1]} 3... a6 {[%clk 0:02:59.3]}
4. Bb2 {[%clk 0:02:55.6]} 4... Nc6 {[%clk 0:02:59.2]} 5. d4 {[%clk 0:02:56]}
5... Bg4 {[%clk 0:02:59]} 6. Be2 {[%clk 0:02:54.5]} 6... e6 {[%clk 0:02:58.9]}
7. O-O {[%clk 0:02:54.2]} 7... Nf6 {[%clk 0:02:58.6]} 8. Nbd2 {[%clk 0:02:54.3]}
8... Bd6 {[%clk 0:02:56.8]} 9. c4 {[%clk 0:02:54.6]} 9... O-O {[%clk 0:02:56.6]}
10. h3 {[%clk 0:02:50.5]} 10... Bh5 {[%clk 0:02:55.9]} 11. Rc1 {[%clk
0:02:43.4]} 11... cxd4 {[%clk 0:02:51]} 12. Nxd4 {[%clk 0:02:42.5]} 12... Bxe2
{[%clk 0:02:50.6]} 13. Qxe2 {[%clk 0:02:43.4]} 13... Rc8 {[%clk 0:02:49.2]} 14.
Nxc6 {[%clk 0:02:41.7]} 14... Rxc6 {[%clk 0:02:47.7]} 15. Bxf6 {[%clk 0:02:37]}
15... Qxf6 {[%clk 0:02:46.2]} 16. cxd5 {[%clk 0:02:37.3]} 16... Rxc1 {[%clk
0:02:42.9]} 17. Rxc1 {[%clk 0:02:36.7]} 17... Qb2 {[%clk 0:02:40.7]} 18. Qd1
{[%clk 0:02:26.5]} 18... exd5 {[%clk 0:02:28.2]} 19. Rc2 {[%clk 0:02:26.7]}
19... Qe5 {[%clk 0:02:27.3]} 20. Nf3 {[%clk 0:02:27.1]} 20... Qe4 {[%clk
0:02:20.4]} 21. Rd2 {[%clk 0:02:17]} 21... Rc8 {[%clk 0:02:15.9]} 22. Rd4 {[%clk
0:01:56.2]} 22... Qc2 {[%clk 0:02:09.5]} 23. Rxd5 {[%clk 0:01:49.5]} 23... Qxd1+
{[%clk 0:01:54.5]} 24. Rxd1 {[%clk 0:01:50.4]} 24... Ba3 {[%clk 0:01:54.4]} 25.
Rd7 {[%clk 0:01:40.4]} 25... b5 {[%clk 0:01:52.6]} 26. g4 {[%clk 0:01:36]} 26...
f6 {[%clk 0:01:39.6]} 27. Nd4 {[%clk 0:01:35]} 27... g6 {[%clk 0:01:35.9]} 28.
Ra7 {[%clk 0:01:28.5]} 28... b4 {[%clk 0:01:28.6]} 29. Rxa6 {[%clk 0:01:27.8]}
29... Rc1+ {[%clk 0:01:28.1]} 30. Kg2 {[%clk 0:01:28.1]} 30... Ra1 {[%clk
0:01:24.5]} 31. Rxf6 {[%clk 0:01:22.9]} 31... Rxa2 {[%clk 0:01:24.2]} 32. Ne6
{[%clk 0:01:23]} 32... h5 {[%clk 0:01:22.6]} 33. Rf8+ {[%clk 0:01:15.5]} 33...
Kh7 {[%clk 0:01:22.2]} 34. Rf7+ {[%clk 0:01:16.4]} 34... Kg8 {[%clk 0:01:22]}
35. Rf8+ {[%clk 0:01:00]} 35... Kh7 {[%clk 0:01:21.8]} 36. g5 {[%clk 0:01:00.9]}
36... Bb2 {[%clk 0:01:20.5]} 37. Rb8 {[%clk 0:00:55.7]} 37... Bc3 {[%clk
0:01:20.4]} 38. Rb7+ {[%clk 0:00:55.3]} 38... Kg8 {[%clk 0:01:19]} 39. Nf4
{[%clk 0:00:45.6]} 39... Rb2 {[%clk 0:01:14.6]} 40. Nxg6 {[%clk 0:00:44.9]}
40... Rxb3 {[%clk 0:01:14.9]} 41. f4 {[%clk 0:00:43.4]} 41... Rb2+ {[%clk
0:01:09.2]} 42. Kf3 {[%clk 0:00:43.4]} 42... b3 {[%clk 0:01:09.5]} 43. f5 {[%clk
0:00:43.4]} 43... Rb1 {[%clk 0:01:08.5]} 44. f6 {[%clk 0:00:43.2]} 44... Bxf6
{[%clk 0:01:08.2]} 45. gxf6 {[%clk 0:00:43.2]} 45... Rf1+ {[%clk 0:01:08.9]} 46.
Ke4 {[%clk 0:00:42.9]} 46... Rxf6 {[%clk 0:01:09.5]} 47. Nf4 {[%clk 0:00:43.1]}
1-0

[Event "*** Titled Tuesday Blitz"]
[Site "Chess.com"]
[Date "2021.03.30"]
[Round "1"]
[White "Tsyhanchuk_Stanislav"]
[Black "Duhless"]
[Result "0-1"]
[WhiteElo "2474"]
[BlackElo "3051"]
[TimeControl "180+1"]
[EndTime "10:06:15 PDT"]
[Termination "Duhless won by resignation"]

1. e4 {[%clk 0:03:00.9]} 1... e5 {[%clk 0:02:58.9]} 2. Nf3 {[%clk 0:03:01.1]}
2... Nc6 {[%clk 0:02:59.8]} 3. Bb5 {[%clk 0:03:01.6]} 3... a6 {[%clk 0:02:59.3]}
4. Ba4 {[%clk 0:03:01.7]} 4... Nf6 {[%clk 0:02:59.8]} 5. O-O {[%clk 0:03:02.1]}
5... b5 {[%clk 0:02:58.9]} 6. Bb3 {[%clk 0:03:02]} 6... Bc5 {[%clk 0:02:59.4]}
7. d3 {[%clk 0:02:58]} 7... d6 {[%clk 0:02:58.4]} 8. c3 {[%clk 0:02:54.5]} 8...
O-O {[%clk 0:02:57.5]} 9. Nbd2 {[%clk 0:02:53.9]} 9... Bb6 {[%clk 0:02:55.9]}
10. h3 {[%clk 0:02:48.9]} 10... h6 {[%clk 0:02:52.5]} 11. Qe2 {[%clk 0:02:48.4]}
11... Ne7 {[%clk 0:02:51.7]} 12. Re1 {[%clk 0:02:40]} 12... Ng6 {[%clk
0:02:51.2]} 13. Nf1 {[%clk 0:02:40.6]} 13... Re8 {[%clk 0:02:50]} 14. Be3 {[%clk
0:02:31.7]} 14... c5 {[%clk 0:02:42.4]} 15. Ng3 {[%clk 0:02:26.7]} 15... Bb7
{[%clk 0:02:38.5]} 16. Rad1 {[%clk 0:02:20.6]} 16... d5 {[%clk 0:02:36]} 17.
exd5 {[%clk 0:02:20.1]} 17... Nxd5 {[%clk 0:02:35.4]} 18. Ne4 {[%clk 0:02:09.2]}
18... Ndf4 {[%clk 0:02:34.9]} 19. Qc2 {[%clk 0:01:59.9]} 19... Rc8 {[%clk
0:02:31.2]} 20. a4 {[%clk 0:01:51.2]} 20... Qd7 {[%clk 0:02:29.1]} 21. axb5
{[%clk 0:01:39.7]} 21... axb5 {[%clk 0:02:30]} 22. Ba2 {[%clk 0:01:34.2]} 22...
Kh8 {[%clk 0:02:19.3]} 23. Qb3 {[%clk 0:00:50.3]} 23... f5 {[%clk 0:02:14.4]}
24. Ned2 {[%clk 0:00:46.8]} 24... Nxg2 {[%clk 0:02:10.2]} 25. Qf7 {[%clk
0:00:43.6]} 25... Qc6 {[%clk 0:02:03.6]} 26. Bd5 {[%clk 0:00:28.3]} 26... Qxd5
{[%clk 0:02:01]} 27. Qxg6 {[%clk 0:00:28.9]} 27... Nxe1 {[%clk 0:01:50.6]} 28.
Rxe1 {[%clk 0:00:26]} 28... Qc6 {[%clk 0:01:39.3]} 29. Qh5 {[%clk 0:00:22.8]}
29... f4 {[%clk 0:01:37.3]} 30. Ne4 {[%clk 0:00:17.8]} 30... fxe3 {[%clk
0:01:36.7]} 31. Nh4 {[%clk 0:00:18.5]} 31... exf2+ {[%clk 0:01:35]} 32. Nxf2
{[%clk 0:00:16.6]} 32... c4 {[%clk 0:01:32.1]} 33. d4 {[%clk 0:00:16.2]} 33...
exd4 {[%clk 0:01:21.3]} 34. Ng6+ {[%clk 0:00:06.1]} 34... Kh7 {[%clk 0:01:19.2]}
35. Qg4 {[%clk 0:00:02]} 0-1

[Event "*** Titled Tuesday Blitz"]
[Site "Chess.com"]
[Date "2021.03.30"]
[Round "1"]
[White "Savva09022009"]
[Black "GMJustin"]
[Result "1-0"]
[WhiteElo "2604"]
[BlackElo "2304"]
[TimeControl "180+1"]
[EndTime "10:06:15 PDT"]
[Termination "Savva09022009 won on time"]

1. d4 {[%clk 0:02:59.4]} 1... Nf6 {[%clk 0:02:44.7]} 2. c4 {[%clk 0:02:55.6]}
2... e6 {[%clk 0:02:44.3]} 3. g3 {[%clk 0:02:52.3]} 3... d5 {[%clk 0:02:30]} 4.
Nf3 {[%clk 0:02:48]} 4... dxc4 {[%clk 0:02:29.2]} 5. Bg2 {[%clk 0:02:47.2]} 5...
Nc6 {[%clk 0:02:28.2]} 6. Qa4 {[%clk 0:02:41.1]} 6... Bb4+ {[%clk 0:02:26.5]} 7.
Bd2 {[%clk 0:02:34]} 7... Nd5 {[%clk 0:02:25.6]} 8. Bxb4 {[%clk 0:02:26]} 8...
Nxb4 {[%clk 0:02:25.1]} 9. O-O {[%clk 0:02:21.3]} 9... Bd7 {[%clk 0:02:11.3]}
10. Ne5 {[%clk 0:02:14.9]} 10... Rb8 {[%clk 0:01:02.7]} 11. Nxc6 {[%clk
0:02:04.1]} 11... Nxc6 {[%clk 0:00:41.3]} 12. Qxc4 {[%clk 0:01:57.5]} 12... O-O
{[%clk 0:00:40.6]} 13. Nc3 {[%clk 0:01:54.8]} 13... e5 {[%clk 0:00:32.3]} 14. d5
{[%clk 0:01:40.5]} 14... Nd4 {[%clk 0:00:30.8]} 15. e3 {[%clk 0:01:33.8]} 15...
Nf5 {[%clk 0:00:29.7]} 16. Qd3 {[%clk 0:01:23.5]} 16... Nd6 {[%clk 0:00:27.2]}
17. f4 {[%clk 0:01:20.7]} 17... Qe7 {[%clk 0:00:23]} 18. Rac1 {[%clk 0:01:13.1]}
18... Rfe8 {[%clk 0:00:17.2]} 19. Rfe1 {[%clk 0:01:12.5]} 19... exf4 {[%clk
0:00:16]} 20. gxf4 {[%clk 0:01:11.3]} 20... Qh4 {[%clk 0:00:14.4]} 21. Kh1
{[%clk 0:01:09.5]} 21... Bh3 {[%clk 0:00:13.2]} 22. Rg1 {[%clk 0:01:02.8]} 22...
Bxg2+ {[%clk 0:00:10.6]} 23. Rxg2 {[%clk 0:01:03.7]} 23... Re7 {[%clk
0:00:09.6]} 24. Rcg1 {[%clk 0:00:59.9]} 24... f5 {[%clk 0:00:09.6]} 25. Ne2
{[%clk 0:00:54.5]} 25... Rbe8 {[%clk 0:00:08.7]} 26. Nd4 {[%clk 0:00:54.3]}
26... Rxe3 {[%clk 0:00:04.2]} 27. Rxg7+ {[%clk 0:00:54]} 27... Kh8 {[%clk
0:00:04.2]} 28. Qxe3 {[%clk 0:00:53.5]} 1-0

[Event "*** Titled Tuesday Blitz"]
[Site "Chess.com"]
[Date "2021.03.30"]
[Round "1"]
[White "zala02"]
[Black "Yaryi_sergey"]
[Result "0-1"]
[WhiteElo "2152"]
[BlackElo "2511"]
[TimeControl "180+1"]
[EndTime "10:06:16 PDT"]
[Termination "Yaryi_sergey won by checkmate"]

1. e4 {[%clk 0:02:58]} 1... g6 {[%clk 0:02:43.5]} 2. Nf3 {[%clk 0:02:57.3]} 2...
Bg7 {[%clk 0:02:40.5]} 3. d4 {[%clk 0:02:57.3]} 3... c6 {[%clk 0:02:38.9]} 4.
Nc3 {[%clk 0:02:57.1]} 4... Na6 {[%clk 0:02:38.9]} 5. a4 {[%clk 0:02:52.2]} 5...
Nc7 {[%clk 0:02:38.5]} 6. Be3 {[%clk 0:02:50.2]} 6... d5 {[%clk 0:02:37.9]} 7.
e5 {[%clk 0:02:46.4]} 7... h5 {[%clk 0:02:36]} 8. Bd3 {[%clk 0:02:45.6]} 8...
Nh6 {[%clk 0:02:35.8]} 9. Ne2 {[%clk 0:02:45.3]} 9... Nf5 {[%clk 0:02:33.6]} 10.
Qd2 {[%clk 0:02:44]} 10... Ne6 {[%clk 0:02:31.3]} 11. c3 {[%clk 0:02:43.3]}
11... Nxe3 {[%clk 0:02:30.2]} 12. Qxe3 {[%clk 0:02:42.9]} 12... Bh6 {[%clk
0:02:30.2]} 13. Nf4 {[%clk 0:02:39.1]} 13... Nxf4 {[%clk 0:02:27.8]} 14. Kf1
{[%clk 0:02:25.4]} 14... Nxg2 {[%clk 0:02:26.8]} 15. Qe2 {[%clk 0:02:22.3]}
15... Nf4 {[%clk 0:02:25]} 16. Qc2 {[%clk 0:02:22.3]} 16... Nxd3 {[%clk
0:02:25.9]} 17. Qxd3 {[%clk 0:02:21.9]} 17... Bf5 {[%clk 0:02:26.8]} 18. Qe2
{[%clk 0:02:20.1]} 18... Be4 {[%clk 0:02:26]} 19. Rg1 {[%clk 0:02:17.8]} 19...
Qd7 {[%clk 0:02:25.9]} 20. Nd2 {[%clk 0:02:10.5]} 20... Qh3+ {[%clk 0:02:23.9]}
21. Ke1 {[%clk 0:02:09.2]} 21... Qxh2 {[%clk 0:02:23.9]} 22. Rf1 {[%clk
0:02:04.6]} 22... Qf4 {[%clk 0:02:23.6]} 23. Rd1 {[%clk 0:01:38.4]} 23... h4
{[%clk 0:02:13.6]} 24. c4 {[%clk 0:01:31.2]} 24... h3 {[%clk 0:02:12.1]} 25.
cxd5 {[%clk 0:01:28.5]} 25... Bxd5 {[%clk 0:02:10.7]} 26. f3 {[%clk 0:01:18.7]}
26... Qg3+ {[%clk 0:02:09.1]} 27. Qf2 {[%clk 0:01:18.8]} 27... Bxd2+ {[%clk
0:02:08.8]} 28. Rxd2 {[%clk 0:01:13.9]} 28... Qxf2+ {[%clk 0:02:09.7]} 29. Kxf2
{[%clk 0:01:13.7]} 29... h2 {[%clk 0:02:09.5]} 30. Rh1 {[%clk 0:01:14]} 30...
Rh3 {[%clk 0:02:08.4]} 31. Rd3 {[%clk 0:01:11.2]} 31... O-O-O {[%clk 0:02:07.5]}
32. b4 {[%clk 0:01:10.6]} 32... g5 {[%clk 0:02:05.4]} 33. Kg2 {[%clk 0:01:10.5]}
33... Rdh8 {[%clk 0:02:02.3]} 34. b5 {[%clk 0:01:07.8]} 34... g4 {[%clk
0:02:02.5]} 35. bxc6 {[%clk 0:00:54.4]} 35... bxc6 {[%clk 0:02:00.9]} 36. e6
{[%clk 0:00:40.1]} 36... f5 {[%clk 0:01:58.3]} 37. Rb1 {[%clk 0:00:34.9]} 37...
h1=Q+ {[%clk 0:01:56]} 38. Rxh1 {[%clk 0:00:34.8]} 38... Bxf3+ {[%clk
0:01:55.9]} 39. Rxf3 {[%clk 0:00:33.4]} 39... gxf3+ {[%clk 0:01:55.6]} 40. Kf2
{[%clk 0:00:34.1]} 40... Rxh1 {[%clk 0:01:56.2]} 41. Kxf3 {[%clk 0:00:35]} 41...
R1h4 {[%clk 0:01:54.9]} 42. a5 {[%clk 0:00:34.3]} 42... c5 {[%clk 0:01:54.8]}
43. Ke3 {[%clk 0:00:35.2]} 43... Rxd4 {[%clk 0:01:54.4]} 44. a6 {[%clk
0:00:34.8]} 44... Rh3+ {[%clk 0:01:54.1]} 45. Kf2 {[%clk 0:00:34.5]} 45... Ra3
{[%clk 0:01:55]} 46. Ke2 {[%clk 0:00:34.4]} 46... Rd2+ {[%clk 0:01:55.9]} 47.
Kxd2 {[%clk 0:00:34.2]} 47... Rxa6 {[%clk 0:01:53.8]} 48. Kc3 {[%clk 0:00:34.3]}
48... Rxe6 {[%clk 0:01:54.7]} 49. Kc4 {[%clk 0:00:35]} 49... f4 {[%clk
0:01:55.4]} 50. Kd5 {[%clk 0:00:35.9]} 50... Kd7 {[%clk 0:01:54.8]} 51. Kxc5
{[%clk 0:00:35.1]} 51... f3 {[%clk 0:01:55.7]} 52. Kb5 {[%clk 0:00:35.5]} 52...
f2 {[%clk 0:01:56.6]} 53. Ka5 {[%clk 0:00:34.8]} 53... f1=Q {[%clk 0:01:57.5]}
54. Kb4 {[%clk 0:00:35.2]} 54... a5+ {[%clk 0:01:56.5]} 55. Kc3 {[%clk
0:00:36.1]} 55... a4 {[%clk 0:01:56.4]} 56. Kd4 {[%clk 0:00:37]} 56... a3 {[%clk
0:01:56.1]} 57. Kc5 {[%clk 0:00:37.9]} 57... Rd6 {[%clk 0:01:54.9]} 58. Kb4
{[%clk 0:00:37]} 58... a2 {[%clk 0:01:54.3]} 59. Kc5 {[%clk 0:00:34]} 59... Qc1+
{[%clk 0:01:53.9]} 60. Kb4 {[%clk 0:00:34.2]} 60... Rb6+ {[%clk 0:01:54.1]} 61.
Ka4 {[%clk 0:00:31.9]} 61... a1=Q# {[%clk 0:01:52.5]} 0-1

[Event "*** Titled Tuesday Blitz"]
[Site "Chess.com"]
[Date "2021.03.30"]
[Round "1"]
[White "Eltaj_Safarli"]
[Black "Manukyan_Artak"]
[Result "1-0"]
[WhiteElo "2858"]
[BlackElo "2443"]
[TimeControl "180+1"]
[EndTime "10:06:19 PDT"]
[Termination "Eltaj_Safarli won by resignation"]

1. e4 {[%clk 0:03:00.9]} 1... c6 {[%clk 0:02:33.3]} 2. d4 {[%clk 0:03:00.1]}
2... d5 {[%clk 0:02:33.3]} 3. exd5 {[%clk 0:03:01]} 3... cxd5 {[%clk 0:02:32.7]}
4. c4 {[%clk 0:03:01.9]} 4... Nf6 {[%clk 0:02:32.9]} 5. Nc3 {[%clk 0:03:02.7]}
5... g6 {[%clk 0:02:33.8]} 6. Qb3 {[%clk 0:03:02.2]} 6... Bg7 {[%clk 0:02:34.7]}
7. cxd5 {[%clk 0:03:02.1]} 7... O-O {[%clk 0:02:34.7]} 8. Be2 {[%clk 0:03:02.3]}
8... Nbd7 {[%clk 0:02:31.3]} 9. Bf3 {[%clk 0:03:02]} 9... Nb6 {[%clk 0:02:31.5]}
10. Bg5 {[%clk 0:03:02.4]} 10... Bf5 {[%clk 0:02:31.2]} 11. Rd1 {[%clk
0:03:02.5]} 11... Rc8 {[%clk 0:02:30.1]} 12. Nge2 {[%clk 0:03:02.3]} 12... Nc4
{[%clk 0:02:25.4]} 13. O-O {[%clk 0:02:52.3]} 13... a6 {[%clk 0:02:25]} 14. a4
{[%clk 0:02:50.8]} 14... Na5 {[%clk 0:02:14.8]} 15. Qb4 {[%clk 0:02:42.9]} 15...
Rc4 {[%clk 0:02:10.1]} 16. Qa3 {[%clk 0:02:40.7]} 16... Bc2 {[%clk 0:01:41]} 17.
Rd2 {[%clk 0:02:36.6]} 17... Bf5 {[%clk 0:01:28.9]} 18. Ng3 {[%clk 0:02:36.8]}
18... Bd7 {[%clk 0:01:26.1]} 19. Re1 {[%clk 0:02:33.5]} 19... Re8 {[%clk
0:01:26.5]} 20. h3 {[%clk 0:02:30.9]} 20... Bf8 {[%clk 0:01:25.8]} 21. Qa2
{[%clk 0:02:28.2]} 21... Rb4 {[%clk 0:01:14.4]} 22. d6 {[%clk 0:02:22.1]} 22...
exd6 {[%clk 0:00:59.2]} 23. Rxe8 {[%clk 0:02:19.1]} 23... Bxe8 {[%clk
0:01:00.1]} 24. Nd5 {[%clk 0:02:07.1]} 24... Rxa4 {[%clk 0:00:45.7]} 25. Nxf6+
{[%clk 0:02:06.6]} 25... Qxf6 {[%clk 0:00:40.8]} 26. Qxa4 {[%clk 0:02:04.8]}
26... Qxg5 {[%clk 0:00:40.7]} 27. Qc2 {[%clk 0:01:57.1]} 27... Ba4 {[%clk
0:00:28.2]} 28. Qc3 {[%clk 0:01:45.2]} 28... Nc6 {[%clk 0:00:24.7]} 29. Ne4
{[%clk 0:01:40.6]} 29... Qf4 {[%clk 0:00:18.6]} 30. Qe3 {[%clk 0:01:32]} 30...
Qxe3 {[%clk 0:00:16.8]} 31. fxe3 {[%clk 0:01:32.9]} 31... d5 {[%clk 0:00:17.6]}
32. Nf6+ {[%clk 0:01:31.8]} 32... Kg7 {[%clk 0:00:17.9]} 33. Nxd5 {[%clk
0:01:32.7]} 33... f5 {[%clk 0:00:15.5]} 34. Bd1 {[%clk 0:01:29.1]} 34... Bb5
{[%clk 0:00:10.3]} 35. Bb3 {[%clk 0:01:29.4]} 35... Na5 {[%clk 0:00:09.5]} 36.
Ba2 {[%clk 0:01:29.1]} 36... Nc4 {[%clk 0:00:08.8]} 37. Rc2 {[%clk 0:01:25.4]}
37... Nd6 {[%clk 0:00:06.8]} 38. Rc7+ {[%clk 0:01:26.3]} 38... Kh6 {[%clk
0:00:06.4]} 39. Nf6 {[%clk 0:01:26.3]} 39... Bg7 {[%clk 0:00:06.7]} 40. Ng8+
{[%clk 0:01:26.8]} 1-0

[Event "*** Titled Tuesday Blitz"]
[Site "Chess.com"]
[Date "2021.03.30"]
[Round "1"]
[White "ckgchess"]
[Black "mr_gustavo"]
[Result "1-0"]
[WhiteElo "2702"]
[BlackElo "2379"]
[TimeControl "180+1"]
[EndTime "10:06:19 PDT"]
[Termination "ckgchess won by resignation"]

1. d4 {[%clk 0:03:00.9]} 1... Nf6 {[%clk 0:02:59.2]} 2. Nf3 {[%clk 0:02:58.8]}
2... e6 {[%clk 0:02:59.2]} 3. g3 {[%clk 0:02:57.9]} 3... d5 {[%clk 0:02:57.2]}
4. Bg2 {[%clk 0:02:58.5]} 4... c5 {[%clk 0:02:52.5]} 5. O-O {[%clk 0:02:56.8]}
5... Nc6 {[%clk 0:02:50.1]} 6. c4 {[%clk 0:02:54.4]} 6... dxc4 {[%clk
0:02:37.7]} 7. dxc5 {[%clk 0:02:54.5]} 7... Qxd1 {[%clk 0:02:38.6]} 8. Rxd1
{[%clk 0:02:55.3]} 8... Bxc5 {[%clk 0:02:35.1]} 9. Nbd2 {[%clk 0:02:55.6]} 9...
c3 {[%clk 0:02:35.6]} 10. bxc3 {[%clk 0:02:54.9]} 10... O-O {[%clk 0:02:30.5]}
11. Nb3 {[%clk 0:02:55.5]} 11... Be7 {[%clk 0:02:29.5]} 12. c4 {[%clk
0:02:55.1]} 12... Bd7 {[%clk 0:02:27.9]} 13. Bb2 {[%clk 0:02:55.3]} 13... Rfd8
{[%clk 0:02:27.1]} 14. Nfd4 {[%clk 0:02:54.6]} 14... Rac8 {[%clk 0:02:23.7]} 15.
Nb5 {[%clk 0:02:55]} 15... Be8 {[%clk 0:02:11.6]} 16. c5 {[%clk 0:02:43]} 16...
Nd5 {[%clk 0:01:43.2]} 17. Nd6 {[%clk 0:02:12.7]} 17... Bxd6 {[%clk 0:01:13.2]}
18. cxd6 {[%clk 0:02:13.6]} 18... Ncb4 {[%clk 0:00:54.5]} 19. e4 {[%clk
0:02:13.5]} 19... Nb6 {[%clk 0:00:49.9]} 20. a3 {[%clk 0:01:38.6]} 20... Na6
{[%clk 0:00:44.4]} 21. e5 {[%clk 0:01:32.3]} 21... Ba4 {[%clk 0:00:43.9]} 22.
Rd3 {[%clk 0:01:30.1]} 22... Bc6 {[%clk 0:00:40.9]} 23. Bxc6 {[%clk 0:01:28.8]}
23... Rxc6 {[%clk 0:00:41.8]} 24. Na5 {[%clk 0:01:29.2]} 24... Rc2 {[%clk
0:00:40.4]} 25. Bd4 {[%clk 0:01:29.5]} 25... Rd7 {[%clk 0:00:37.4]} 26. Rb1
{[%clk 0:01:27]} 26... Nc5 {[%clk 0:00:23.6]} 27. Rc3 {[%clk 0:00:55.6]} 27...
Rxc3 {[%clk 0:00:23.2]} 28. Bxc3 {[%clk 0:00:56.5]} 28... Nd5 {[%clk 0:00:21.2]}
29. Bd4 {[%clk 0:00:55.2]} 29... Na6 {[%clk 0:00:06]} 30. Nxb7 {[%clk
0:00:53.7]} 30... Rxb7 {[%clk 0:00:06.5]} 31. Rxb7 {[%clk 0:00:53.5]} 1-0